{"text_format":"1","workbook":"xlsx","n_sheets":5,"sheets":["提名須知 (Nomination Guidelines) ","Nomination Form(提名表格)","Declaration (收集個人資料聲明)","Control Data","Worksheet"],"not_rendered":{"charts":0,"images":2,"macros":1,"external_links":0,"defined_names":4,"comments":0,"pivot_tables":0},"unopened":[],"bounds":{"document_bytes":16777216,"sheet_cells":100000,"rows_first":2000,"rows_last":500,"rows_between":2000,"halvings":0,"cell_chars":16384,"cell_head_chars":4096},"cells_cut":0,"cells_raw":0,"read":"whole","date_system":"1900"}

{"sheet":"提名須知 (Nomination Guidelines) ","index":0,"n_rows":47,"n_cols":2,"rows_kept":47,"cut":false,"hidden":false,"merged":[[0,0,0,5],[1,0,1,5],[13,1,13,5],[17,1,17,5],[25,1,25,5],[3,0,3,5],[5,0,5,5],[9,0,9,5],[11,0,11,5],[7,0,7,5],[19,1,19,5],[15,1,15,5],[21,1,21,5],[23,1,23,5],[46,0,46,5],[27,0,27,5],[36,0,36,5],[38,0,38,5],[40,0,40,5],[42,0,42,5],[33,1,33,5],[34,1,34,5],[29,1,29,5],[31,1,31,5]]}
["優質公共房屋建造及保養維修大獎2025"]
["新工程項目 - 傑出工友、工地管工及安全主任和安全督導員\n提名須知"]
[]
["優質公共房屋建造及保養維修大獎2025"]
[]
["評審準則:"]
[]
["評審委員會將會按工程質素、工藝水準、環境保護、職業安全健康、社區參與、夥伴合作及顧客服務質素等各方面進行評審。"]
[]
["一般要求:"]
[]
["以上獎項須由提名人推薦，再經甄選及評審委員評審。\n(註：提名人須為區議員、公屋居民或非住宅物業的租戶、承建商、分包商或房屋署職員。)\n\n"]
[]
["l","所有被提名人必須在評選期內，即2023年7月1日至2025年6月30日，曾參與房委會工程合約。\u0098\u0098"]
[]
["l","被提名人需在評選期內不涉及安全、衞生、環保等等定罪記錄、嚴重事故、危險事故、暫時停工通知書、改善通知書、勞工處建築地盤檢查通知書第一部分或就工地安全而被政府檢控。"]
[]
["l","被提名人需在評選期內不涉及可能導致工人或公眾安全有嚴重後果的閃失/事故。"]
[]
["l","獲提名的傑出工地管工須具備工地知識、管理及危機處理等經驗。"]
[]
["l","獲提名的傑出安全主任和安全督導員須具備工地安全知識、管理及危機處理等經驗。"]
[]
["l","獲提名的傑出工友必須為「註冊建造業工人」。"]
[]
["l","獲提名的傑出工友須提交相關資料，如建造業工人註冊證、安全銀卡、工藝測試合格證書、法例規定之有效工作許可證、認可學徒訓練資歷、嘉許書或讚許書副本等(如適用)以供評審委員會考慮。"]
[]
["提名方法:"]
[]
["1.","提名將以電郵提交的形式進行，不設紙本提名表格。"]
[]
["2.","提名表格須由提名人提交；提名人須預先獲得被提名人同意，並須提交由被提名人簽署之聲明。"]
[]
["3.","提名人填妥「優質公共房屋建造及保養維修大獎2025」的提名表格後，須同時遞交被提名人的相關資料，如建造業工人註冊證、安全銀卡、工藝測試合格證書、法例規定之有效工作許可證、認可學徒訓練資歷、嘉許書或讚許書副本等，以及被提名人已簽妥之聲明。提名人須將填妥的提名表格及相關資料發送至以下電郵地址:"]
[null,"新工程項目：qa2025.dcd@housingauthority.gov.hk"]
[]
["截止提名日期:"]
[]
["2025年7月31日(星期四)"]
[]
["頒獎禮日期:"]
[]
["2025年12月3日(星期三)"]
[]
["查詢電話:"]
[]
["新工程項目組別  ： 2129 3548"]

{"sheet":"Nomination Form(提名表格)","index":1,"n_rows":58,"n_cols":9,"rows_kept":58,"cut":false,"hidden":false,"merged":[[22,1,22,5],[54,0,56,0],[25,1,25,2],[25,4,25,5],[54,2,54,5],[55,1,56,1],[51,1,51,5],[52,1,52,5],[34,1,34,5],[35,1,35,5],[37,1,37,5],[38,1,38,5],[39,1,39,5],[40,1,40,5],[41,1,41,5],[48,1,48,5],[57,1,57,5],[5,0,5,5],[12,0,12,5],[14,0,14,5],[15,1,15,5],[53,0,53,5],[24,1,24,5],[20,1,20,5],[26,1,26,5],[27,1,27,5],[50,1,50,5],[28,0,28,5],[43,1,43,5],[18,1,18,5],[19,1,19,5],[13,1,13,5],[11,1,11,5],[0,7,2,7],[23,1,23,5],[4,1,4,5],[3,1,3,5],[6,1,6,5],[7,1,7,5],[8,1,8,5],[9,1,9,5],[10,1,10,5],[16,1,16,5],[17,1,17,5],[1,0,1,5],[0,0,0,5],[2,0,2,5],[21,0,21,5],[49,1,49,5],[29,0,29,5],[36,0,36,5],[45,0,45,5],[42,1,42,5],[44,1,44,5],[46,1,46,5],[47,1,47,5],[30,1,30,5],[31,1,31,5],[32,1,32,5],[33,1,33,5]]}
["優質公共房屋建造及保養維修大獎2025",null,null,null,null,null,null,{"$f":"COUNTIFS(H4:H1048576,\"必須填寫\")+COUNTIFS(H4:H1048576,\"必須提供\")","v":16}]
["新工程項目 - 傑出工友、工地管工及安全主任和安全督導員\n提名表格"]
[]
["申請編號 (DCD-AX-XXX)",{"$f":"IFERROR(IF(OR(AND(B11=\"\",H1=16),H1=17,H1=18),\"\",IF(OR(B11=\"\",B14=\"\",B17=\"\",H17=\"無效聯絡電話, 請檢查\",H17=\"必須填寫\"),\"請填寫提名人類別、提名競逐組別、被提名人聯絡電話及合約類別\",IF(OR(B14=\"\",B17=\"\",B11=\"\",B14=\"\"),\"\",VLOOKUP(B14,'Control Data'!C:D,2,0)&\"-\"&TEXT(IF(I17<21293574,21293547-I17,I17-21293574),\"####\")&VLOOKUP(B11,'Control Data'!A:B,2,0)&\"-\"&VLOOKUP(B23,'Control Data'!K:L,2,0)))),\"請填寫提名人類別、提名競逐組別、被提名人聯絡電話及合約類別\")","v":""},null,null,null,null,"<-不需填寫"]
["提交日期",{"$f":"TEXT(NOW(),\"YYYY-MM-DD HH:MM:SS\")","v":"2025-06-11 16:27:23"}]
["提名人資料"]
["提名人姓名",null,null,null,null,null,{"$f":"IF(OR(H7=\"必須填寫\",H7=\"必須提供\"),\"ç\",\"\")","v":"ç"},{"$f":"IF(B7=\"\",\"必須填寫\",\"\")","v":"必須填寫"}]
["職位",null,null,null,null,null,{"$f":"IF(OR(H8=\"必須填寫\",H8=\"必須提供\"),\"ç\",\"\")","v":"ç"},{"$f":"IF(B8=\"\",\"必須填寫\",\"\")","v":"必須填寫"}]
["聯絡電話",null,null,null,null,null,{"$f":"IF(OR(H9=\"必須填寫\",H9=\"必須提供\",H9=\"無效聯絡電話, 請檢查\"),\"ç\",\"\")","v":"ç"},{"$f":"IF(B9=\"\",\"必須填寫\",IF(OR(LEN(SUBSTITUTE(B9,\" \",\"\"))=8,LEN(SUBSTITUTE(B9,\" \",\"\"))=17),\"\",\"無效聯絡電話, 請檢查\"))","v":"必須填寫"}]
["電郵地址",null,null,null,null,null,"ç",{"$f":"IF(B10=\"\",\"必須填寫\",\"\")","v":"必須填寫"}]
["提名人類別",null,null,null,null,null,"ç",{"$f":"IF(B11=\"\",\"必須填寫\",\"\")","v":"必須填寫"}]
[{"$f":"IF(B11=\"房屋署職員\",\"承建商/分包商名稱 (不適用)\",\"承建商/分包商名稱\")","v":"承建商/分包商名稱"},null,null,null,null,null,"",{"$f":"IF(AND(B11=\"承建商/分包商\",B12=\"\"),\"必須填寫\",\"\")","v":""}]
["申請資料"]
["提名競逐組別",null,null,null,null,null,{"$f":"IF(OR(H14=\"必須填寫\",H14=\"必須提供\"),\"ç\",\"\")","v":"ç"},{"$f":"IF(B14=\"\",\"必須填寫\",\"\")","v":"必須填寫"}]
["被提名人資料"]
["姓名",null,null,null,null,null,{"$f":"IF(OR(H16=\"必須填寫\",H16=\"必須提供\"),\"ç\",\"\")","v":"ç"},{"$f":"IF(B16=\"\",\"必須填寫\",\"\")","v":"必須填寫"}]
["聯絡電話",null,null,null,null,null,{"$f":"IF(OR(H17=\"必須填寫\",H17=\"必須提供\",H17=\"無效聯絡電話, 請檢查\"),\"ç\",\"\")","v":"ç"},{"$f":"IF(B17=\"\",\"必須填寫\",IF(OR(LEN(SUBSTITUTE(B17,\" \",\"\"))=8,LEN(SUBSTITUTE(B17,\" \",\"\"))=17),\"\",\"無效聯絡電話, 請檢查\"))","v":"必須填寫"},{"$f":"IFERROR(IF(LEN(SUBSTITUTE(B17,\" \",\"\"))=8,VALUE(SUBSTITUTE(B17,\" \",\"\")),((LEFT(SUBSTITUTE(B17,\" \",\"\"),8)-RIGHT(SUBSTITUTE(B17,\" \",\"\"),8))^2)^0.5),\"\")","v":""}]
["職位",null,null,null,null,null,{"$f":"IF(OR(H18=\"必須填寫\",H18=\"必須提供\"),\"ç\",\"\")","v":"ç"},{"$f":"IF(B18=\"\",\"必須填寫\",\"\")","v":"必須填寫"}]
["工種(如適用)"]
["建造業工人註冊證編號(如適用) "]
[{"$f":"IF(B20=\"\",\"\",\"有效期至(如適用) (日/月/年)\")","v":""},null,null,null,null,null,{"$f":"IF(OR(H21=\"必須填寫\",H21=\"必須提供\"),\"ç\",\"\")","v":""},{"$f":"IF(AND(A21=\"有效期至(如適用) (日/月/年)\",B21=\"\"),\"必須填寫\",\"\")","v":""}]
["合約資料"]
["合約類別",null,null,null,null,null,{"$f":"IF(OR(H23=\"必須填寫\",H23=\"必須提供\"),\"ç\",\"\")","v":"ç"},{"$f":"IF(B23=\"\",\"必須填寫\",\"\")","v":"必須填寫"}]
["合約名稱",null,null,null,null,null,{"$f":"IF(OR(H24=\"必須填寫\",H24=\"必須提供\"),\"ç\",\"\")","v":"ç"},{"$f":"IF(B24=\"\",\"必須填寫\",\"\")","v":"必須填寫"}]
["合約編號",null,null,null,null,null,"ç",{"$f":"IF(B25=\"\",\"必須填寫\",\"\")","v":"必須填寫"}]
["參與工程時期 (月/年 至 月/年)",null,null,"至",null,null,"ç",{"$f":"IF(OR(B26=\"\",E26=\"\"),\"必須填寫\",\"\")","v":"必須填寫"}]
["所屬總承建商/分包商名稱",null,null,null,null,null,"ç",{"$f":"IF(B27=\"\",\"必須填寫\",\"\")","v":"必須填寫"}]
["工作範圍",null,null,null,null,null,{"$f":"IF(OR(H28=\"必須填寫\",H28=\"必須提供\"),\"ç\",\"\")","v":"ç"},{"$f":"IF(B28=\"\",\"必須填寫\",\"\")","v":"必須填寫"}]
["提名原因"]
["傑出工友(如適用) "]
["個人需有的成就(如優質工藝、訓練、安全工作表現(例如持有安全銀咭或在工地安全有貢獻)、貢獻(行業/施工))"]
["工友從事於有關工程/工種的表現評分"]
["社區參與"]
["對周遭事物展關懷"]
["其他(如曾獲頒發相關讚許書/嘉許狀)"]
["總評語 "]
["傑出工地管工(如適用) "]
["工地知識及持續進修"]
["工地及資源規劃"]
["工地管理及協調"]
["安全、環保和健康，工程質素以及工程進度管理"]
["危機處理"]
["回應及處理工地的需要"]
["其他(如曾獲頒發相關讚許書/嘉許狀)"]
["總評語 "]
["傑出安全主任和安全督導員(如適用) "]
["工地安全知識及持續進修"]
["工地安全管理"]
["工地安全工作表現"]
["危機處理"]
["回應及處理工地的需要"]
["其他(如曾獲頒發相關讚許書/嘉許狀)"]
["總評語 "]
["文件提供"]
["提供被提名人的建造業工人註冊證、安全銀卡、工藝測試合格證書、法例規定之有效工作許可證、認可學徒訓練資歷、嘉許書或讚許書副本或附加資料等等(如適用)","提供文件 \n(有/否)","提供文件種類"]
[null,null,null,null,null,null,{"$f":"IF(H56=\"必須提供建造業工人註冊證\",\"ç\",\"\")","v":""},{"$f":"IF(B14=\"(B) 保養維修及改善項目 - 傑出工友獎\",\"必須提供建造業工人註冊證\",\"\")","v":""}]
[]
["提供被提名人已簽妥之聲明",null,null,null,null,null,{"$f":"IF(OR(H58=\"必須填寫\",H58=\"必須提供\"),\"ç\",\"\")","v":"ç"},{"$f":"IF(B58=\"\",\"必須提供\",\"\")","v":"必須提供"}]

{"sheet":"Declaration (收集個人資料聲明)","index":2,"n_rows":49,"n_cols":6,"rows_kept":49,"cut":false,"hidden":true,"merged":[[22,1,22,9],[0,1,0,9],[2,1,2,9],[6,2,6,9],[8,2,8,9],[4,1,4,9],[10,1,10,9],[12,2,12,9],[14,1,14,9],[16,2,16,9],[18,1,18,9],[20,2,20,9],[24,1,24,9],[26,1,26,9],[28,2,28,9],[29,1,29,9],[28,0,28,1],[32,3,33,9],[35,3,37,9],[44,5,44,6],[46,5,46,6],[48,5,48,6],[44,7,44,9],[46,7,46,9],[48,7,48,9]]}
[null,"《優質公共房屋建造及保養維修大奬2025》"]
[]
[null,"收集個人資料聲明"]
[]
[null,"收集個人資料的目的"]
[]
[null,"1.","閣下提供的個人資料(包括提名人及被提名人)，房屋委員會/房屋署會用以處理有關《優質公共房屋建造及保養維修大奬2025》之事宜 。"]
[]
[null,"2.","閣下提供的個人資料純屬自願性質，但如資料不足，房屋委員會/房屋署可能無法處理有關事宜。在收集個人資料時，房屋委員會/房屋署/提名人會遵守《個人資料(私隱)條例》(香港法例第486章)的規定。"]
[]
[null,"個人資料承轉人類別"]
[]
[null,"3.","閣下提供的個人資料(包括提名人及被提名人)可能會向其他相關政府部門及有關協辦機構披露，以便使用於上文第一段所述的目的。"]
[]
[null,"資料的保安及保留期間"]
[]
[null,"4.","房屋委員會/房屋署會採取一切切實可行的步驟，保障個人資料不會未經授權或意外地被查閲、處理、刪除、喪失或使用。房屋委員會/房屋署亦會採取所有切實可行的步驟，以確保持有的個人資料的保留時間不超過達致原來目的實際所需。"]
[]
[null,"查閱個人資料"]
[]
[null,"5.","根據《個人資料(私隱)條例》(香港法例第486章) 第 18條、第 22 條及該條例附表 1 的第 6 原則，閣下有權查閱及改正閣下的個人資料。對此如有任何查詢，可聯絡："]
[]
[null,"九龍何文田佛光街 33 號"]
[]
[null,"香港房屋委員會總部第二座三樓"]
[]
[null,"房屋署部門資料保障主任"]
[]
["6.",null,"有關房屋委員會/房屋署的私隱政策，閣下可參考以下網址：https://www.housingauthority.gov.hk/tc/global-elements/privacy-policy/index.html"]
[null,"《優質公共房屋建造及保養維修大奬2025》"]
[null,"聲明"]
[]
[null,null,null,"本人確認已同意提名人提交本人的個人資料及相關證明文件的副本，供「優質公共房屋建造及保養維修大獎2025」有關事宜之用。"]
[]
[]
[null,null,null,"本人謹此聲明，本人在評估期 (2023年7月1日至2025年6月30日) 內不涉及任何安全定罪、嚴重事故、危險事故、暫時停工通知、改善通知、勞工處建築地盤檢查通知書第一部分，或就工地安全而政府被檢控。"]
[]
[]
[]
[]
[]
[]
[]
[]
[null,null,null,null,null,"被提名人姓名："]
[]
[null,null,null,null,null,"被提名人簽署: "]
[]
[null,null,null,null,null,"日期："]

{"sheet":"Control Data","index":3,"n_rows":9,"n_cols":12,"rows_kept":9,"cut":false,"hidden":true,"merged":[]}
["提名人類別",null,"提名競逐組別","申請編號",null,null,null,"文件類別",null,null,"合約類別"]
["房屋署職員","S","新工程項目 - 傑出工友","DCD-A5",null,null,null,"工人註冊證",null,null,"新工程合約","NW"]
["承建商/分包商","C","新工程項目 - 傑出工地管工","DCD-A6",null,null,null,"安全銀卡"]
["區議員","D","新工程項目 - 傑出安全主任和安全督導員","DCD-A7",null,null,null,"工藝測試合格證書"]
["公屋居民或非住宅物業的租戶","T",null,null,null,null,null,"法例規定之有效工作許可證"]
[null,null,null,null,null,null,null,"認可學徒訓練資歷"]
[null,null,null,null,null,null,null,"嘉許書或讚許書"]
[null,null,null,null,null,null,null,"建造業安全訓練證明書(綠咭)"]
[null,null,null,null,null,null,null,"其他相關文件"]

{"sheet":"Worksheet","index":4,"n_rows":2,"n_cols":41,"rows_kept":2,"cut":false,"hidden":true,"merged":[]}
["工程合約範疇","申請編號","提交日期","更新日期","提名人姓名","職位","提名人聯絡電話","提名人電郵地址","提名人類別","承建商/分包商名稱","提名競逐組別","被提名人姓名","被提名人聯絡電話","屋邨保養承建商工作證編號(如適用)","被提名人職位","工種(如適用)","建造業工人註冊證編號(如適用)","有效期至(如適用)","合約類別","合約類別(其他)","合約名稱","合約編號","參與工程時期","所屬總承建商/分包商名稱","工作範圍","工藝質素/品質/技術知識/訓練及貢獻(如承傳、培訓)","工地安全知識及持續進修/管理/工作效能(如施工步驟、監察進度、保存紀錄)","社區參與/對周遭事物展關懷/處理危機","工作態度及與其他工友或房屋署職員之合作性/客戶服務技巧","其他(如曾獲頒發相關讚許書)","總評語","上載被提名人的建造業工人註冊證、安全銀卡、工藝測試合格證書、法例規定之有效工作許可證、認可學徒訓練資歷、嘉許書或讚許書副本或附加資料等等(如適用)","上載被提名人已簽妥之聲明","工人註冊證","安全銀卡","工藝測試合格證書","法例規定之有效工作許可證","認可學徒訓練資歷","嘉許書或讚許書副本","附加資料","編號"]
[{"$f":"'Nomination Form(提名表格)'!#REF!","v":{"$error":"#REF!"}},{"$f":"'Nomination Form(提名表格)'!B4","v":""},{"$f":"'Nomination Form(提名表格)'!B5","v":"2025-06-11 16:27:23"},null,{"$f":"IF('Nomination Form(提名表格)'!B7=\"\",\"\",'Nomination Form(提名表格)'!B7)","v":""},{"$f":"IF('Nomination Form(提名表格)'!B8=\"\",\"\",'Nomination Form(提名表格)'!B8)","v":""},{"$f":"IF('Nomination Form(提名表格)'!B9=\"\",\"\",'Nomination Form(提名表格)'!B9)","v":""},{"$f":"IFERROR('Nomination Form(提名表格)'!B10,\"\")","v":0},{"$f":"IFERROR('Nomination Form(提名表格)'!B11,\"\")","v":0},{"$f":"IFERROR(IF('Nomination Form(提名表格)'!B12=\"\",\"\",'Nomination Form(提名表格)'!B12),\"\")","v":""},{"$f":"IFERROR('Nomination Form(提名表格)'!B14,\"\")","v":0},{"$f":"IFERROR('Nomination Form(提名表格)'!B16,\"\")","v":0},{"$f":"IFERROR('Nomination Form(提名表格)'!B17,\"\")","v":0},{"$f":"IFERROR(IF('Nomination Form(提名表格)'!#REF!=\"\",\"\",'Nomination Form(提名表格)'!#REF!),\"\")","v":""},{"$f":"IFERROR('Nomination Form(提名表格)'!B18,\"\")","v":0},{"$f":"IFERROR(IF('Nomination Form(提名表格)'!B19=\"\",\"\",'Nomination Form(提名表格)'!B19),\"\")","v":""},{"$f":"IFERROR(IF('Nomination Form(提名表格)'!B20=\"\",\"\",'Nomination Form(提名表格)'!B20),\"\")","v":""},{"$f":"IFERROR(IF('Nomination Form(提名表格)'!B21=\"\",\"\",'Nomination Form(提名表格)'!B21),\"\")","v":""},{"$f":"IFERROR(IF('Nomination Form(提名表格)'!B23=\"\",\"\",'Nomination Form(提名表格)'!B23),\"\")","v":""},{"$f":"IFERROR(IF('Nomination Form(提名表格)'!#REF!=\"\",\"\",'Nomination Form(提名表格)'!#REF!),\"\")","v":""},{"$f":"IFERROR('Nomination Form(提名表格)'!B24,\"\")","v":0},{"$f":"IFERROR('Nomination Form(提名表格)'!B25,\"\")","v":0},{"$f":"IF(AND('Nomination Form(提名表格)'!B26=\"\",'Nomination Form(提名表格)'!E26=\"\"),\"\",IFERROR(TEXT('Nomination Form(提名表格)'!B26,\"DD/MM/YYYY\")&\" \"&'Nomination Form(提名表格)'!D26&\" \"&IF(ISERROR(VALUE('Nomination Form(提名表格)'!E26))=TRUE,'Nomination Form(提名表格)'!E26,TEXT('Nomination Form(提名表格)'!E26,\"DD/MM/YYYY\")),\"\"))","v":""},{"$f":"IFERROR('Nomination Form(提名表格)'!B27,\"\")","v":0},{"$f":"IFERROR('Nomination Form(提名表格)'!B28,\"\")","v":0},{"$f":"IFERROR('Nomination Form(提名表格)'!B30,\"\")","v":0},{"$f":"IFERROR('Nomination Form(提名表格)'!B44,\"\")","v":0},{"$f":"IFERROR('Nomination Form(提名表格)'!B51,\"\")","v":0},{"$f":"IFERROR('Nomination Form(提名表格)'!B52,\"\")","v":0},{"$f":"IFERROR('Nomination Form(提名表格)'!B53,\"\")","v":0},{"$f":"IFERROR('Nomination Form(提名表格)'!#REF!,\"\")","v":""},{"$f":"IFERROR(IF('Nomination Form(提名表格)'!B56=\"\",\"\",'Nomination Form(提名表格)'!B56),\"\")","v":""},{"$f":"IFERROR('Nomination Form(提名表格)'!B58,\"\")","v":0},{"$f":"COUNTIFS('Nomination Form(提名表格)'!$C$56:$F$57,Worksheet!AH1)","v":0},{"$f":"COUNTIFS('Nomination Form(提名表格)'!$C$56:$F$57,Worksheet!AI1)","v":0},{"$f":"COUNTIFS('Nomination Form(提名表格)'!$C$56:$F$57,Worksheet!AJ1)","v":0},{"$f":"COUNTIFS('Nomination Form(提名表格)'!$C$56:$F$57,Worksheet!AK1)","v":0},{"$f":"COUNTIFS('Nomination Form(提名表格)'!$C$56:$F$57,Worksheet!AL1)","v":0},{"$f":"COUNTIFS('Nomination Form(提名表格)'!$C$56:$F$57,Worksheet!AM1)","v":0},{"$f":"COUNTIFS('Nomination Form(提名表格)'!$C$56:$F$57,Worksheet!AN1)","v":0},{"$f":"IFERROR(VLOOKUP(K2,'Control Data'!C:E,3,0)&VLOOKUP(A2,'Control Data'!#REF!,2,0)&\"-\"&COUNTA($B:$B)-COUNTA(B3:$B$1048576)-1,\"\")","v":""}]